Cogmind - Beta 16 @@@ ROGUE MODE // 2025.11.28 @ 15:56:44 Player: Kathisto Result: Escaped! Performance ------------- Evolutions (9) 4500 Regions Visited (26) 5200 Robots Destroyed (335) 1675 Value Destroyed (16079) 16079 Prototype IDs (54) 1080 Alien Tech Used (1) 200 Bonus (10403) 10403 TOTAL SCORE: 39137 Bonus ------- High Alert Combat Kills 1774 Follower Combat Kills 700 Entered DSFs 500 Aligned with FarCom 300 Destroyed Z-Imprinter 1000 Met Warlord at Base 500 MAIN.C Attacked Warlord 500 Met Warlord at Research 2000 Scanned by Researcher 500 Win 3000 Friendly Fire -371 Cogmind --------- Core Integrity 603/1600 Matter 300/300 Energy 47/100 System Corruption 21% Temperature Cool (2) Movement Treading (145) Location To Epsilon Eridani Parts ------- > --- POWER (3) -------- (None) > --- PROPULSION (6) --- Biometal Medium Treads Biometal Heavy Treads > --- UTILITY (7) ------ Experimental Target Analyzer Experimental Core Analyzer > --- WEAPON (9) ------- (None) > --- INVENTORY (5) ---- Advanced Heat Sink Graphene Brace Improved Focal Shield Subatomic Replicator Vortex Shotgun (37) Peak State ------------ > --- POWER ------------ Light Quantum Reactor Vortex Chain Reactor > --- PROPULSION ------- Biometal Medium Treads Biometal Medium Treads Armored Heavy Treads Biometal Heavy Treads > --- UTILITY ---------- Experimental Heat Sink Experimental Cooling System Huge Storage Unit Advanced Targeting Computer Experimental Targeting Computer Experimental Target Analyzer Experimental Core Analyzer > --- WEAPON ----------- Hypervelocity Railgun Hypervelocity Railgun Hypervelocity Railgun Hypervelocity Railgun Hypervelocity Railgun Hypervelocity Railgun Helical Railgun 8R-AWN's Boregun 8R-AWN's Boregun > --- INVENTORY -------- Particle Reactor Light Quantum Reactor Armored Medium Treads Biometal Medium Treads Biometal Medium Treads Biometal Medium Treads Advanced Heat Sink Advanced Heat Sink Zionite Biocell Matter Compressor Graphene Brace Point Defense System High-powered Tractor Beam Transdimensional Reconstructor Subatomic Replicator Vortex Shotgun Coil Gun Coil Gun Coil Gun KE Penetrator KE Penetrator KE Penetrator KE Penetrator KE Penetrator KE Penetrator [Rating: 217] Favorites ----------- Power Ion Engine Engine Ion Engine Power Core Neutrino Core Reactor Vortex Chain Reactor Propulsion Light Treads Treads Light Treads Leg Zionite Composite Leg I Utility Huge Storage Unit Device Experimental Heat Sink Storage Huge Storage Unit Processor Experimental Targeting Computer Protection Powered Armor Weapon Enhanced Autogun Energy Gun Zionite Phaser-S Ballistic Gun Enhanced Autogun Ballistic Cannon Enhanced Hardcell Cannon Launcher Rocket Launcher Special Weapon Warlord Statue Build | -11 -10 -10 -9 -9 -9 -8 -8 -7 -7 -7 -7 -7 -6 -6 -5 -5 -4 -4 -4 -4 -3 -3 -3 -2 -1 -1 ------- Run | Yrd Mat Min Mat Min Exi Min Mat Fac Low Low Zio Dee Pro Fac Fac DSF Fac Upp Upp War Pro Res Qua Res Acc Com Slots Evolved 18 | . . . 2 . . . 2 2 . . . . . 2 2 . 2 . . . . 2 . 2 2 . Power 2 | . . . . . . . . . . . . . . . . . 1 . . . . 1 . . . . Propulsion 4 | . . . . . . . 1 1 . . . . . . . . 1 . . . . 1 . . . . Utility 5 | . . . . . . . 1 1 . . . . . 1 1 . . . . . . . . . 1 . Weapon 7 | . . . 2 . . . . . . . . . . 1 1 . . . . . . . . 2 1 . Parts Attached 186 | 6 2 . 8 1 15 1 25 3 5 4 2 12 2 3 2 3 . 1 3 8 1 12 16 13 27 11 Power 21 | 1 . . . . 1 . 3 . . . . 2 . . . . . 1 1 . . 3 3 1 2 3 Engine 5 | 1 . . . . . . 3 . . . . 1 . . . . . . . . . . . . . . Core 2 | . . . . . 1 . . . . . . . . . . . . . 1 . . . . . . . Reactor 14 | . . . . . . . . . . . . 1 . . . . . 1 . . . 3 3 1 2 3 Propulsion 47 | 2 . . . 1 4 . 9 . 2 1 1 1 2 . . 3 . . 2 1 1 3 2 2 4 6 Treads 46 | 2 . . . 1 4 . 9 . 2 1 1 . 2 . . 3 . . 2 1 1 3 2 2 4 6 Leg 1 | . . . . . . . . . . . . 1 . . . . . . . . . . . . . . Wheel . | . . . . . . . . . . . . . . . . . . . . . . . . . . . Hover . | . . . . . . . . . . . . . . . . . . . . . . . . . . . Flight . | . . . . . . . . . . . . . . . . . . . . . . . . . . . Utility 41 | 1 1 . 3 . 3 . 2 3 2 2 1 4 . 3 1 . . . . 3 . 2 1 1 7 1 Device 21 | . . . . . 1 . 2 1 1 1 . 2 . 1 . . . . . 3 . 1 . 1 6 1 Storage 5 | 1 1 . 1 . 1 . . . . . . 1 . . . . . . . . . . . . . . Processor 8 | . . . 1 . 1 . . . . . 1 . . 1 1 . . . . . . 1 1 . 1 . Hackware . | . . . . . . . . . . . . . . . . . . . . . . . . . . . Protection 7 | . . . 1 . . . . 2 1 1 . 1 . 1 . . . . . . . . . . . . Artifact . | . . . . . . . . . . . . . . . . . . . . . . . . . . . Weapon 77 | 2 1 . 5 . 7 1 11 . 1 1 . 5 . . 1 . . . . 4 . 4 10 9 14 1 Energy Gun 6 | 1 . . . . . . . . . . . 3 . . . . . . . 2 . . . . . . Energy Cannon . | . . . . . . . . . . . . . . . . . . . . . . . . . . . Ballistic Gun 67 | 1 1 . 5 . 6 1 10 . 1 1 . 2 . . 1 . . . . 2 . 4 10 8 13 1 Ballistic Cannon 1 | . . . . . . . . . . . . . . . . . . . . . . . . . 1 . Launcher 2 | . . . . . 1 . 1 . . . . . . . . . . . . . . . . . . . Special Weapon 1 | . . . . . . . . . . . . . . . . . . . . . . . . 1 . . Impact Weapon . | . . . . . . . . . . . . . . . . . . . . . . . . . . . Slashing Weapon . | . . . . . . . . . . . . . . . . . . . . . . . . . . . Piercing Weapon . | . . . . . . . . . . . . . . . . . . . . . . . . . . . Special Melee Weapon . | . . . . . . . . . . . . . . . . . . . . . . . . . . . Unidentified Prototypes 29 | . . . 1 . . . 4 . . 1 . 8 . 1 1 . . . . 5 . 1 4 1 2 . Corrupted Parts 2 | . . . . . . . . . . . . . . . . . . . . . . . . 1 1 . System Corruption 12 | . . . . . . . . . . . . . . . . . . . . . . . . 10 2 . Parts Lost 52 | . . . . . 6 . 4 . 1 . . 1 1 . . 2 . 1 . . . . 2 1 10 23 Power 6 | . . . . . 1 . 1 . . . . 1 . . . . . . . . . . . . . 3 Propulsion 12 | . . . . . 2 . . . 1 . . . 1 . . 2 . . . . . . 1 . 1 4 Utility 9 | . . . . . 1 . . . . . . . . . . . . . . . . . 1 1 1 5 Weapon 25 | . . . . . 2 . 3 . . . . . . . . . . 1 . . . . . . 8 11 Highest Loss Streak 21 | . . . . . 3 . 2 . 1 . . 1 1 . . 1 . 1 . . . . 1 1 2 21 To Critical Strikes 3 | . . . . . 2 . . . . . . . . . . . . . . . . . 1 . . . Average Backups 21 | 2 13 14 21 24 20 25 19 18 19 21 22 24 24 19 18 18 19 18 19 19 19 22 24 24 24 24 Power . | . . . . . . 1 . . 1 1 1 . . . . . . . . 1 1 1 1 1 2 1 Propulsion 5 | . 4 4 9 10 6 8 6 4 3 4 4 3 3 3 3 3 3 3 3 3 4 4 4 3 3 3 Utility 6 | . . 1 2 4 5 9 5 7 8 8 9 11 11 8 7 7 7 7 8 7 8 8 7 6 6 8 Weapon 8 | . 8 8 8 10 7 7 6 7 7 7 8 8 8 8 8 8 9 8 8 7 6 7 9 10 9 8 Tool/Special . | . . . . . . . . . . . . . . . . . . . . . . . . . . . Unused Backups 52 | . 4 1 4 . 7 1 5 . . . . 2 2 2 . . . . 1 6 . . . 1 2 14 Power 6 | . 1 . . . 3 . . . . . . . . . . . . . . 1 . . . . . 1 Propulsion 13 | . 1 . 2 . 1 1 4 . . . . . . . . . . . . 2 . . . . . 2 Utility 13 | . 1 1 . . 1 . 1 . . . . 2 1 2 . . . . . 1 . . . . . 3 Weapon 18 | . 1 . 2 . 2 . . . . . . . 1 . . . . . 1 2 . . . 1 2 6 Tool/Special 2 | . . . . . . . . . . . . . . . . . . . . . . . . . . 2 Average Slot Usage (%) 95 | . 84 85 98 100 99 100 99 99 100 100 100 99 99 99 99 100 94 95 100 99 100 99 91 86 87 89 Engine 5 | . 14 14 11 11 5 . 8 7 7 7 7 1 . . . . . . . . . . . . . . Core 1 | . . . . . 4 11 . . . . . . . . . . . . 1 5 5 2 . . . . Reactor 3 | . . . . . . . . . . . . 5 7 6 5 5 5 6 8 5 5 10 10 8 8 11 Treads 24 | . 27 28 22 22 21 22 27 30 30 30 30 30 29 26 23 23 26 26 26 26 26 28 23 17 16 15 Device 4 | . . . . . . . 8 7 7 7 7 7 7 6 5 5 5 5 5 5 5 8 8 8 8 10 Storage 7 | . 14 14 11 11 10 11 9 7 7 7 7 7 7 6 5 5 5 5 5 5 5 4 4 4 4 3 Processor 8 | . . . 7 . 5 11 9 7 7 7 7 7 7 12 17 17 15 15 15 15 15 14 14 13 15 12 Protection 3 | . . . 2 11 5 . . 6 7 7 7 6 7 6 5 5 5 5 5 5 5 . . . . . Ballistic Gun 34 | . 26 28 43 44 43 44 35 30 30 29 30 28 29 31 34 35 30 26 31 30 31 27 26 33 35 35 Peak Build Rating 217 | 6 7 9 17 18 29 31 42 49 51 54 56 66 62 68 77 91 96 101 109 124 108 144 170 198 217 214 Average Rating 77 | 5 6 7 14 17 22 29 36 48 48 52 53 60 61 66 76 82 92 97 104 106 108 130 155 189 210 204 On Entrance 72 | . 6 7 7 17 18 29 31 42 49 51 53 56 62 56 66 77 91 96 101 107 108 108 143 167 193 206 Avg Prop Armor Cover (%) 10 | . . . . . . . . . . . . . . . . . . . . . . . . . 7 28 Naked Turns . | . . . . . . . . . . . . . . . . . . . . . . . . . . . Heaviest Build 219 | 13 34 29 99 99 114 114 67 77 79 117 117 118 110 77 78 78 80 92 96 102 98 170 179 191 198 219 Greatest Support 225 | 40 40 40 40 43 46 46 69 82 82 80 90 90 90 80 80 104 121 121 137 137 129 163 177 189 205 225 Greatest Overweight (x) 4 | 4 . . 2 2 2 2 1 . . 1 1 1 1 . . 1 . . . . . 1 1 1 1 1 Average Overweight (x) . | . . . 1 2 1 2 . . . . 1 . . . . . . . . . . . . . . . Largest Inventory Capacity 25 | 8 15 15 25 25 25 25 25 20 20 25 25 25 25 20 20 20 20 20 20 20 20 25 25 25 25 25 Average Capacity 22 | 7 13 15 23 25 22 25 20 20 20 23 25 24 24 20 20 20 20 20 20 20 20 24 25 25 25 24 Most Carried 25 | 3 15 15 25 25 25 25 24 20 20 22 24 25 25 20 19 20 19 19 20 20 20 25 25 25 25 25 Average Carried 21 | 2 13 14 21 24 20 25 19 18 19 21 22 24 24 19 18 18 19 18 19 19 20 23 24 24 24 24 Final Capacity 25 | 8 15 15 25 25 25 25 20 20 20 25 25 25 20 20 20 20 20 20 20 20 20 25 25 25 25 5 Final Carried 25 | 3 15 15 24 25 25 25 20 20 20 22 24 25 20 20 18 20 19 19 20 20 20 25 25 25 25 5 Class Distribution -------------------- 36% | Scavenger-Executioner 18% | Scavenger-Tank 15% | Tank 12% | Gunner 10% | Mutant 6% | Scavenger-Gunner Dominant Class ---------------- Mutant | -10/Materials Mutant | -10/Mines Gunner | -9/Materials Tank | -9/Mines Gunner | -9/Exiles Gunner | -8/Mines Scavenger-Gunner | -8/Materials Scavenger-Tank | -7/Factory Scavenger-Tank | -7/Lower Caves Scavenger-Tank | -7/Lower Caves Scavenger-Tank | -7/Zion Scavenger-Tank | -7/Deep Caves Scavenger-Tank | -6/Proximity Caves Scavenger-Gunner | -6/Factory Scavenger-Executioner | -5/Factory Scavenger-Executioner | -5/DSF Scavenger-Executioner | -4/Factory Scavenger-Executioner | -4/Upper Caves Scavenger-Executioner | -4/Upper Caves Scavenger-Executioner | -4/Warlord Scavenger-Executioner | -3/Proximity Caves Scavenger-Executioner | -3/Research Scavenger-Executioner | -3/Quarantine Scavenger-Executioner | -2/Research Scavenger-Executioner | -1/Access Scavenger-Executioner | -1/Command Resources | -11 -10 -10 -9 -9 -9 -8 -8 -7 -7 -7 -7 -7 -6 -6 -5 -5 -4 -4 -4 -4 -3 -3 -3 -2 -1 -1 ----------- Run | Yrd Mat Min Mat Min Exi Min Mat Fac Low Low Zio Dee Pro Fac Fac DSF Fac Upp Upp War Pro Res Qua Res Acc Com Matter Collected 18637 | 278 569 49 626 70 1108 218 1637 249 630 232 30 523 214 325 . 438 47 350 322 318 274 460 1739 778 4102 3051 Remotely 2974 | . . . . . . . . 120 . . . . . . . . . . . . . . 580 . 1654 620 Salvage Created 20950 | 60 575 54 1071 153 573 518 2164 249 575 230 . 275 116 . . 499 47 554 577 219 470 752 2231 505 4123 4360 Parts 1201 | . 47 9 62 9 75 23 138 9 29 10 . 26 2 . . 45 3 41 22 12 33 39 133 16 213 205 Haulers Intercepted 13 | . 2 . 4 . . . 5 . . 1 . . . . . . . . . . . . . . 1 . Recyclers Shooed 6 | . 1 . 3 . . . 2 . . . . . . . . . . . . . . . . . . . Parts Field Recycled . | . . . . . . . . . . . . . . . . . . . . . . . . . . . Retrieved Matter . | . . . . . . . . . . . . . . . . . . . . . . . . . . . Parts Self-Destructed 139 | . . . . . . . . . 35 16 1 . 14 . . . . 40 . . 33 . . . . . Prevented 5 | . . . . . . . . . 3 2 . . . . . . . . . . . . . . . . Parts Restored . | . . . . . . . . . . . . . . . . . . . . . . . . . . . Kills | -11 -10 -10 -9 -9 -9 -8 -8 -7 -7 -7 -7 -7 -6 -6 -5 -5 -4 -4 -4 -4 -3 -3 -3 -2 -1 -1 ------- Run | Yrd Mat Min Mat Min Exi Min Mat Fac Low Low Zio Dee Pro Fac Fac DSF Fac Upp Upp War Pro Res Qua Res Acc Com Combat Hostiles Destroyed 254 | . 14 3 13 3 6 4 29 4 11 6 . 3 4 . . 6 . 7 4 . 6 4 25 6 47 49 Guns 243 | . 14 3 13 3 1 4 29 4 11 2 . 3 2 . . 6 . 7 4 . 6 4 25 6 47 49 AOE 11 | . . . . . 5 . . . . 4 . . 2 . . . . . . . . . . . . . Classes Destroyed 27 | 1 4 1 2 . 3 2 4 . 1 . . 2 . . . 1 . 2 . . . . 4 . . . Worker 15 | . . . 3 . . . 1 . . . . . . . . . . . . . . 1 5 . 2 3 Builder 4 | . . . . . . . 3 . . . . . . . . . . . . . . . . . 1 . Tunneler 5 | . . 1 . 1 . 1 2 . . . . . . . . . . . . . . . . . . . Hauler 13 | . 2 . 4 . . . 5 . . 1 . . . . . . . . . . . . . . 1 . Recycler 14 | 1 1 . 3 . . 3 3 . . . . . . . . . . . . . . 2 . . 1 . Mechanic 1 | . . . . . . . . . . . . . . . . . . . . . . . 1 . . . Operator 4 | . . . . . . . 1 . . . . . . . . . . . . . . 1 . . . 2 Turret 1 | . . . . . 1 . . . . . . . . . . . . . . . . . . . . . Watcher 14 | . 2 . 4 . . . 2 . . . . . . . . . 1 . . . . 1 1 . 1 2 Swarmer 34 | . 9 3 3 . . . 3 . 4 . . . . . . . . . . . 1 . 2 . 5 4 Grunt 96 | . 5 . 6 2 . 2 17 3 4 5 . . 3 . . 2 . 3 . . 1 . 6 . 11 26 Brawler 3 | . . . . . . 1 . . . . . . . . . . . . . . . . . . 2 . Duelist 2 | . . . . . . . 1 . . 1 . . . . . . . . . . . . . . . . Researcher 1 | . . . . . . . . . . . . . . . . . . . . . . . 1 . . . Sentry 28 | . . . 4 . . . 5 1 2 . . . . . . . . . . . 1 2 2 2 4 5 Specialist 5 | . . . . . . . . . . . . . . . . 3 . . . 2 . . . . . . Hunter 36 | . . . . . . 1 2 . . . . . 1 . . . . . . 1 2 2 10 4 11 2 Programmer 33 | . . . . . . . . . . . . . . . . . . 4 . . 1 . 3 . 13 12 Heavy 2 | . . . . . . . 1 . . . . . . . . 1 . . . . . . . . . . Q-Series 2 | . . . . . . . . . . . . . . . . . . . . . . . 1 . 1 . Behemoth 1 | . . . . . . . . . 1 . . . . . . . . . . . . . . . . . Alpha 7 1 | . . . . . . . . . . . . . . . . . . . . . . . 1 . . . Zionite 8 | . . . . . 8 . . . . . . . . . . . . . . . . . . . . . Z-Light 3 | . . . . . . . . . . . . 3 . . . . . . . . . . . . . . Packrat 3 | . . . . . . . . . . . . . . . . . . . 3 . . . . . . . Samaritan 1 | . . . . . . . . . . . . . . . . . . 1 . . . . . . . . Assembled 5 | . . . . . 5 . . . . . . . . . . . . . . . . . . . . . Thug 1 | . . . . . . . . . . . . . . . . . . . 1 . . . . . . . Butcher 3 | . . . . . . . . . . . . . . . . . . . 3 . . . . . . . Fireman 1 | . . . . . . . . . . . . 1 . . . . . . . . . . . . . . Best Kill Streak 8 | 1 5 3 4 1 5 5 5 3 4 5 . 3 3 . . 5 1 3 4 . 3 3 8 2 6 8 Combat Bots Only 7 | . 5 3 3 1 5 4 4 3 4 4 . 3 3 . . 5 . 3 4 . 3 2 7 2 5 7 Max Kills in Single Turn 3 | 1 2 1 2 1 2 1 2 1 1 2 . 1 1 . . 1 1 1 2 1 2 1 2 1 3 2 Gunslinging 1 | . 1 . 1 . . . 1 . . . . . . . . . . . . . 1 . 1 . 1 1 Exploded 2 | . . . . . 2 . . . . 2 . . 1 . . . . . . . . . . . . . Melee . | . . . . . . . . . . . . . . . . . . . . . . . . . . . Uniques/NPCs Destroyed 6 | . . . . 1 4 . . . . . . 1 . . . . . . . . . . . . . . YI-UF0 (-9/Mines) 8R-AWN (-9/Exiles) EX-HEX (-9/Exiles) EX-BIN (-9/Exiles) EX-DEC (-9/Exiles) Z-Imprinter (-7/Deep Caves) Combat | -11 -10 -10 -9 -9 -9 -8 -8 -7 -7 -7 -7 -7 -6 -6 -5 -5 -4 -4 -4 -4 -3 -3 -3 -2 -1 -1 -------- Run | Yrd Mat Min Mat Min Exi Min Mat Fac Low Low Zio Dee Pro Fac Fac DSF Fac Upp Upp War Pro Res Qua Res Acc Com Hostile Shots Fired 1643 | . 51 17 43 2 62 30 109 28 97 9 . 22 24 22 . 51 . 44 8 . 37 16 316 37 217 401 Missed 394 | . 12 4 8 1 4 10 33 14 34 2 . 5 7 9 . 14 . 6 2 . 7 5 74 8 52 83 Hits 1249 | . 39 13 35 1 58 20 76 14 63 7 . 17 17 13 . 37 . 38 6 . 30 11 242 29 165 318 Melee 12 | . . . . . . . . . . . . . . . . . . . 4 . . . . . . 8 Projectile 1237 | . 39 13 35 1 58 20 76 14 63 7 . 17 17 13 . 37 . 38 2 . 30 11 242 29 165 310 AOE 12 | . . . . . . . . . . . . . . . . . . . . 2 . . 10 . . . Critical Strikes 63 | . . . . 1 15 . 3 . . . . . . . . . . 3 1 . . . 15 1 8 16 Actively Blocked 3 | . . . . . . . . . . . . . . . . . . . . . . . . . 3 . Part Disruptions 3 | . 1 . . . . . . . . . . . . . . . . . . . . . . . . 2 Damage Taken 22436 | . 433 104 406 14 1396 255 1452 163 1066 127 . 525 345 125 . 702 . 840 211 67 274 125 2798 349 3856 6803 Core 1794 | . 74 22 48 . 111 76 111 . 93 . . . 61 16 . 27 . . . . . 10 136 12 276 721 Absorbed by Shields 4447 | . . . . . . . . . . . . . . . . . . . . 30 258 128 2421 294 . 1316 Reduced by Siege Mode 277 | . . . . . . . . . . . . . . . . . . . . . . . 107 . 153 17 Regen/Repaired (Parts) 911 | . 296 . . . . . . . . . 261 . . . . . . . . 354 . . . . . . Core Remaining (%) 79 | 100 . 61 . . . 41 79 . . . . . 78 98 . 97 . . . . 100 . 83 99 . 37 Volleys Fired 722 | 6 64 7 46 5 60 14 91 13 35 12 . 18 14 6 . 13 2 19 11 37 11 32 62 13 74 57 Largest 9 | 2 2 2 4 4 4 4 4 4 4 4 . 4 4 5 . 6 6 6 6 6 6 6 6 8 9 9 Hottest 343 | 60 60 40 89 89 92 92 99 96 106 108 . 100 100 125 . 150 150 158 158 158 166 196 220 289 343 343 Shots Fired 3211 | 12 107 14 184 20 195 54 366 52 140 30 . 72 35 18 . 78 7 74 66 47 66 92 328 76 613 465 Gun 3176 | 12 107 14 184 20 181 54 366 52 140 24 . 72 28 18 . 78 7 74 66 47 66 92 328 75 610 461 Cannon 7 | . . . . . . . . . . . . . . . . . . . . . . . . . 3 4 Launcher 27 | . . . . . 14 . . . . 6 . . 7 . . . . . . . . . . . . . Special 1 | . . . . . . . . . . . . . . . . . . . . . . . . 1 . . Kinetic 3070 | 6 88 14 184 20 181 54 366 52 140 24 . 72 28 15 . 78 6 67 66 12 66 72 312 72 610 465 Thermal 25 | 6 19 . . . . . . . . . . . . . . . . . . . . . . . . . Explosive 27 | . . . . . 14 . . . . 6 . . 7 . . . . . . . . . . . . . Electromagnetic . | . . . . . . . . . . . . . . . . . . . . . . . . . . . Impact 1 | . . . . . . . . . . . . . . . . . . . . . . . . 1 . . Entropic 13 | . . . . . . . . . . . . . . . . . . . . 5 . . 7 1 . . Phasic 75 | . . . . . . . . . . . . . . 3 . . 1 7 . 30 . 20 9 2 3 . Robot Hit Streak 48 | 10 8 4 14 12 48 9 11 7 30 6 . 3 6 7 . 11 3 14 15 14 13 16 37 13 34 26 Robot Miss Streak 12 | 1 3 1 5 . 4 3 5 3 3 6 . 12 3 2 . 3 1 2 2 2 2 3 4 7 4 4 Penetration Max 2 | . . . . . . . 1 . . . . . . . . . . . . . 1 . 2 . 1 2 Secondary Targets 53 | . 3 1 3 . 1 2 5 . 2 . . 1 1 . . 1 . 1 2 . 2 . 9 . 6 13 Max Gunslinging Chain 2 | . 1 1 2 . 1 1 1 . 1 . . 1 1 . . 1 . 1 1 . 1 . 1 . 1 2 Shots Hit Robots 1930 | 11 74 9 112 10 124 34 219 29 102 16 . 29 22 13 . 48 3 50 44 10 45 41 235 40 351 259 Core Hits 857 | 2 27 7 38 9 44 15 85 12 27 22 . 15 15 2 . 23 3 21 21 8 20 23 108 21 156 133 Critical Kills 86 | . . . . . . . 2 . . . . . . . . . . . . . 2 1 6 3 29 43 Critical Parts Destroyed 129 | . 1 . . . 1 . 1 1 . 1 . . . . . . . . 1 1 . . 11 4 57 50 Critical Strikes 228 | . 1 . . . 2 . 3 1 . 1 . . . . . . . . 1 1 2 1 17 7 92 99 Destroy 227 | . 1 . . . 2 . 3 1 . 1 . . . . . . . . 1 . 2 1 17 7 92 99 Detonate 1 | . . . . . . . . . . . . . . . . . . . . 1 . . . . . . Melee Attacks . | . . . . . . . . . . . . . . . . . . . . . . . . . . . Impact . | . . . . . . . . . . . . . . . . . . . . . . . . . . . Slashing . | . . . . . . . . . . . . . . . . . . . . . . . . . . . Piercing . | . . . . . . . . . . . . . . . . . . . . . . . . . . . Sneak Attacks . | . . . . . . . . . . . . . . . . . . . . . . . . . . . Combat Hostiles . | . . . . . . . . . . . . . . . . . . . . . . . . . . . Follow-up Attacks . | . . . . . . . . . . . . . . . . . . . . . . . . . . . Damage Inflicted 37978 | 128 959 154 1603 177 2262 477 3569 473 1753 1013 . 629 972 267 . 895 50 1050 863 253 922 765 5645 918 6890 5291 Guns 35499 | 128 905 118 1566 165 1765 477 3552 455 1753 206 . 629 296 261 . 895 50 1024 863 253 922 757 5633 918 6889 5019 Cannons . | . . . . . . . . . . . . . . . . . . . . . . . . . . . Explosions 1980 | . . . . . 497 . . . . 807 . . 676 . . . . . . . . . . . . . Melee . | . . . . . . . . . . . . . . . . . . . . . . . . . . . Ramming 499 | . 54 36 37 12 . . 17 18 . . . . . 6 . . . 26 . . . 8 12 . 1 272 Kinetic 34600 | 62 758 118 1566 165 1765 477 3552 455 1753 206 . 629 296 228 . 895 50 1024 863 145 922 757 5088 918 6889 5019 Thermal 213 | 66 147 . . . . . . . . . . . . . . . . . . . . . . . . . Explosive 1980 | . . . . . 497 . . . . 807 . . 676 . . . . . . . . . . . . . Electromagnetic . | . . . . . . . . . . . . . . . . . . . . . . . . . . . Impact . | . . . . . . . . . . . . . . . . . . . . . . . . . . . Slashing . | . . . . . . . . . . . . . . . . . . . . . . . . . . . Piercing . | . . . . . . . . . . . . . . . . . . . . . . . . . . . Entropic 653 | . . . . . . . . . . . . . . . . . . . . 108 . . 545 . . . Phasic 33 | . . . . . . . . . . . . . . 33 . . . . . . . . . . . . Highest Corruption 21 | . 2 2 . . 2 2 4 . . . . . . . . . . 2 2 2 1 . 4 10 15 21 Average Corruption 6 | . 2 2 . . 2 2 3 . . . . . . . . . . 1 2 2 1 . 3 10 7 17 Corruption Purged . | . . . . . . . . . . . . . . . . . . . . . . . . . . . Corruption Blocked . | . . . . . . . . . . . . . . . . . . . . . . . . . . . Effects 302 | . 17 6 . . 11 6 18 . . . . . . . . . . 2 8 1 3 . 24 26 78 102 Message Errors 70 | . 7 1 . . 2 1 7 . . . . . . . . . . . 1 . 2 . 1 3 22 23 Matter Fused 63 | . 1 2 . . 2 3 3 . . . . . . . . . . . 2 . . . 7 6 13 24 Heat Flow Errors 32 | . 4 2 . . 3 . 1 . . . . . . . . . . 1 2 . . . 2 3 7 7 Energy Discharges 40 | . 2 . . . 1 . . . . . . . . . . . . . 1 . 1 . 2 5 12 16 Parts Rejected 6 | . . . . . . . . . . . . . . . . . . . . . . . 2 . 1 3 Parts Fused 3 | . . . . . 1 . 1 . . . . . . . . . . . . . . . . . 1 . Data Loss (minor) 26 | . 1 1 . . 2 . 2 . . . . . . . . . . . . 1 . . 3 5 8 3 Data Loss (major) 12 | . . . . . . . 2 . . . . . . . . . . 1 . . . . 1 2 1 5 Misfires 16 | . 2 . . . . . 2 . . . . . . . . . . . . . . . 3 1 4 4 Alerts 7 | . . . . . . . . . . . . . . . . . . . 2 . . . 1 . 2 2 Misdirections 1 | . . . . . . . . . . . . . . . . . . . . . . . . . . 1 Weapon Failures 26 | . . . . . . 2 . . . . . . . . . . . . . . . . 2 1 7 14 Overload Shots . | . . . . . . . . . . . . . . . . . . . . . . . . . . . Overflow Damage 150 | . . . 1 . 27 . . . . 11 . . 45 . . . . 3 . . . . . . . 63 Projectiles . | . . . . . . . . . . . . . . . . . . . . . . . . . . . Explosions 83 | . . . . . 27 . . . . 11 . . 45 . . . . . . . . . . . . . Melee 67 | . . . 1 . . . . . . . . . . . . . . 3 . . . . . . . 63 Knockbacks 1 | . . . . . . . . . . . . . . . . . . . . . . . . . . 1 Impact 1 | . . . . . . . . . . . . . . . . . . . . . . . . . . 1 Kinetic . | . . . . . . . . . . . . . . . . . . . . . . . . . . . Secondary . | . . . . . . . . . . . . . . . . . . . . . . . . . . . Self-Inflicted Damage 128 | . . . . . 92 . . . . . . . 24 . . . . . . 12 . . . . . . Shots 5 | . . . . . 3 . . . . . . . 1 . . . . . . 1 . . . . . . Rammed 50 | . 15 8 5 3 . 1 2 2 . . . . . 2 . . . 2 . . . . 1 . 1 8 Targets Rammed 54 | . 15 9 6 3 . 1 3 2 . . . . . 2 . . . 2 . . . 1 1 . 1 8 Kicked . | . . . . . . . . . . . . . . . . . . . . . . . . . . . Crushed 4 | . . 1 1 . . . 1 . . . . . . . . . . . . . . 1 . . . . Highest Temperature 393 | . 248 188 74 54 220 105 251 30 38 12 . 226 155 154 . 315 106 369 243 128 183 176 51 117 279 393 Average Temperature 68 | . 82 96 27 20 47 41 44 11 11 7 . 83 68 70 . 105 64 136 127 64 78 63 32 52 108 106 Received Heat Transfer 2309 | . 132 . 177 27 9 99 378 75 192 63 . 153 117 30 . 219 . 81 . . 14 4 101 8 225 205 Effects 7 | . 2 . . . . . . . . . . . . . . . . 2 . . . . . . . 3 Shutdowns 2 | . . . . . . . . . . . . . . . . . . . . . . . . . . 2 Interference 4 | . 2 . . . . . . . . . . . . . . . . 2 . . . . . . . . Damage (minor) 1 | . . . . . . . . . . . . . . . . . . . . . . . . . . 1 Siege Activations 16 | . . . . . . . . . . . . . . . . . . . . . . . 7 1 6 2 Total Turns 346 | . . . . . . . . . . . . . . . . . . . . . . . 141 2 182 21 Longest Duration 93 | . . . . . . . . . . . . . . . . . . . . . . . 42 2 93 15 Martial Activations . | . . . . . . . . . . . . . . . . . . . . . . . . . . . Shielding Activations . | . . . . . . . . . . . . . . . . . . . . . . . . . . . Robots Disrupted . | . . . . . . . . . . . . . . . . . . . . . . . . . . . Combat Hostiles . | . . . . . . . . . . . . . . . . . . . . . . . . . . . Robots Corrupted 4 | . . . 1 . . . . . . . . . . . . . . 1 . . . . . . . 2 Combat Hostiles . | . . . . . . . . . . . . . . . . . . . . . . . . . . . Parts Fried 4 | . . . . . . . . . . . . . . . . . . 1 . . . . . . . 3 Impact Corruptions 5 | . . . 1 . . . . . . . . . . . . . . 1 . . . . . . . 3 Robots Melted . | . . . . . . . . . . . . . . . . . . . . . . . . . . . Combat Hostiles . | . . . . . . . . . . . . . . . . . . . . . . . . . . . Parts Melted 2 | . 1 . . . . . . . . . . . . . . . . . . . . . . 1 . . Heat Transferred 500 | 150 350 . . . . . . . . . . . . . . . . . . . . . . . . . Parts Sabotaged . | . . . . . . . . . . . . . . . . . . . . . . . . . . . Parts Stolen . | . . . . . . . . . . . . . . . . . . . . . . . . . . . Parts Stripped . | . . . . . . . . . . . . . . . . . . . . . . . . . . . Power Chain Reactions . | . . . . . . . . . . . . . . . . . . . . . . . . . . . Alert | -11 -10 -10 -9 -9 -9 -8 -8 -7 -7 -7 -7 -7 -6 -6 -5 -5 -4 -4 -4 -4 -3 -3 -3 -2 -1 -1 ------- Run | Yrd Mat Min Mat Min Exi Min Mat Fac Low Low Zio Dee Pro Fac Fac DSF Fac Upp Upp War Pro Res Qua Res Acc Com Maximum Alert Level 4 | . . . . . . . 1 . . . . . . . . . . . . . . . 1 . 2 4 Low Security (%) 73 | 100 100 100 100 100 . 100 67 100 . . . . . 100 100 100 100 . . . . 100 58 100 14 . Level 1 8 | . . . . . . . 32 . . . . . . . . . . . . . . . 41 . 12 10 Level 2 13 | . . . . . . . . . . . . . . . . . . . . . . . . . 73 41 Level 3 4 | . . . . . . . . . . . . . . . . . . . . . . . . . . 42 Level 4 . | . . . . . . . . . . . . . . . . . . . . . . . . . . 6 Level 5 . | . . . . . . . . . . . . . . . . . . . . . . . . . . . High Security . | . . . . . . . . . . . . . . . . . . . . . . . . . . . Max Security . | . . . . . . . . . . . . . . . . . . . . . . . . . . . Peak Influence 1209 | 5 142 75 147 74 . 85 355 168 . . . . . 64 9 107 56 . . . . 45 346 186 691 1209 Initial 432 | . . . . . . . 11 138 . . . . . 64 9 . 56 . . . . . . 186 8 432 Average 173 | . 23 5 55 6 . 34 149 131 . . . . . 15 2 72 29 . . . . 8 144 46 491 727 Influence Increases 7593 | 5 387 90 426 149 . 120 901 100 285 220 . . 346 158 . 167 11 185 . . 143 155 789 162 1383 1411 Destroy 0b10 Robot/C 5120 | . 280 60 260 100 . 80 580 80 220 180 . . 200 60 . 120 . 140 . . 120 80 520 120 940 980 Destroy 0b10 Robot/NC 355 | 5 25 5 70 10 . 20 85 . . 5 . . . . . . 5 . . . . 25 35 . 30 35 Destroy Leader 1040 | . 58 10 66 20 . 20 154 20 20 20 . . 30 30 . 20 2 30 . . 20 32 62 30 192 204 Allied During Kill 193 | . . . . 4 . . . . . 15 . . 116 45 . 10 . . . . 3 . . . . . Successful Hack 82 | . 8 . 12 . . . . . . . . . . . . . . . . . . . 24 . 38 . Disable Machine 270 | . . 15 15 . . . 60 . . . . . . 15 . 15 . . . . . . 75 . 45 30 Destroy Structure 263 | . 1 . 3 . . . 7 . . . . . . 8 . 2 4 . . . . 18 58 12 93 57 Partial Spotted 15 | . . . . . . . . . . . . . . . . . . . . . . . 15 . . . Lose Combat Pursuer 255 | . 15 . . 15 . . 15 . 45 . . . . . . . . 15 . . . . . . 45 105 Influence Decreases 6602 | 5 387 90 423 152 . 90 625 308 304 299 . . 243 240 21 60 118 137 48 . 143 155 456 481 722 1095 Entered New Map 751 | . . . . 3 . . 19 168 37 16 . . . 39 12 . 51 . 10 . . . . 147 6 243 Time Decay 5395 | 5 387 90 423 149 . 90 570 140 267 263 . . 233 201 9 . 67 137 38 . 143 155 436 334 636 622 Lost Part 396 | . . . . . . . 36 . . . . . 10 . . 20 . . . . . . 20 . 80 230 Lost Ally 60 | . . . . . . . . . . 20 . . . . . 40 . . . . . . . . . . Squads Dispatched 41 | . 3 1 1 2 . . 3 1 . . . . . 2 . 2 1 . . . . 1 9 1 8 6 Investigation 7 | . 2 1 1 . . . . . . . . . . . . . . . . . . . 1 . 2 . Extermination 16 | . . . . . . . . 1 . . . . . 2 . . . . . . . 1 2 . 5 5 Reinforcement 14 | . 1 . . . . . 3 . . . . . . . . 2 1 . . . . . 6 1 . . Assault 4 | . . . . 2 . . . . . . . . . . . . . . . . . . . . 1 1 Garrison . | . . . . . . . . . . . . . . . . . . . . . . . . . . . Intercept . | . . . . . . . . . . . . . . . . . . . . . . . . . . . Searches Triggered . | . . . . . . . . . . . . . . . . . . . . . . . . . . . Unchained Authorized 1 | . . . . . . . . . . . . . . 1 . . . . . . . . . . . . Construction Impeded 1 | . . . . . . . . . . . . . . . . . . . . . . . 1 . . . Haulers Reinforced 1 | . . . . . . . . . . . . . . . . . . . . . . . 1 . . . Active Scanning Responses . | . . . . . . . . . . . . . . . . . . . . . . . . . . . Cargo Convoy Interrupts . | . . . . . . . . . . . . . . . . . . . . . . . . . . . Stealth | -11 -10 -10 -9 -9 -9 -8 -8 -7 -7 -7 -7 -7 -6 -6 -5 -5 -4 -4 -4 -4 -3 -3 -3 -2 -1 -1 --------- Run | Yrd Mat Min Mat Min Exi Min Mat Fac Low Low Zio Dee Pro Fac Fac DSF Fac Upp Upp War Pro Res Qua Res Acc Com Distress Signals 22 | . 1 . 6 . . . 2 . . . . . . . . . . . . 5 . . 2 5 . 1 Communications Jammed . | . . . . . . . . . . . . . . . . . . . . . . . . . . . Distress Signals . | . . . . . . . . . . . . . . . . . . . . . . . . . . . Times Spotted 370 | . 26 3 22 3 16 4 40 6 14 8 . 9 8 5 . 6 1 8 4 14 7 5 31 13 48 69 Peak Tracking Total 11 | . 4 2 4 2 9 3 4 2 7 5 . 4 4 1 . 3 . 3 4 11 3 2 5 4 8 10 Tactical Retreats 16 | . 1 . . 1 1 . 1 . 2 . . . . . . . . 1 . . . . . . 3 6 Traps | -11 -10 -10 -9 -9 -9 -8 -8 -7 -7 -7 -7 -7 -6 -6 -5 -5 -4 -4 -4 -4 -3 -3 -3 -2 -1 -1 ------- Run | Yrd Mat Min Mat Min Exi Min Mat Fac Low Low Zio Dee Pro Fac Fac DSF Fac Upp Upp War Pro Res Qua Res Acc Com Traps Triggered 13 | . 4 . . . . . 3 . . . . . . . . 1 . . . . . . 2 . 1 2 Indirectly . | . . . . . . . . . . . . . . . . . . . . . . . . . . . Trap Hack Attempts . | . . . . . . . . . . . . . . . . . . . . . . . . . . . Triggered . | . . . . . . . . . . . . . . . . . . . . . . . . . . . Disarmed . | . . . . . . . . . . . . . . . . . . . . . . . . . . . Reprogrammed . | . . . . . . . . . . . . . . . . . . . . . . . . . . . Reused . | . . . . . . . . . . . . . . . . . . . . . . . . . . . Traps Extracted . | . . . . . . . . . . . . . . . . . . . . . . . . . . . Installed . | . . . . . . . . . . . . . . . . . . . . . . . . . . . Triggered . | . . . . . . . . . . . . . . . . . . . . . . . . . . . Machines | -11 -10 -10 -9 -9 -9 -8 -8 -7 -7 -7 -7 -7 -6 -6 -5 -5 -4 -4 -4 -4 -3 -3 -3 -2 -1 -1 ---------- Run | Yrd Mat Min Mat Min Exi Min Mat Fac Low Low Zio Dee Pro Fac Fac DSF Fac Upp Upp War Pro Res Qua Res Acc Com Machines Disabled 34 | . . 1 1 . 10 . 4 . 1 . . 2 . 1 . 1 . . . 2 . . 6 . 3 2 Max in Single Turn 2 | . . 1 1 . 1 . 1 . 1 . . . . . . . . . . 2 . . 2 . 1 1 Garrison Access 1 | . . . . . . . . . . . . . . . . . . . . . . . . 1 . . Machines Repaired . | . . . . . . . . . . . . . . . . . . . . . . . . . . . Machines Dismantled . | . . . . . . . . . . . . . . . . . . . . . . . . . . . Machines Sabotaged . | . . . . . . . . . . . . . . . . . . . . . . . . . . . Overloaded Fab Kills . | . . . . . . . . . . . . . . . . . . . . . . . . . . . Hacking | -11 -10 -10 -9 -9 -9 -8 -8 -7 -7 -7 -7 -7 -6 -6 -5 -5 -4 -4 -4 -4 -3 -3 -3 -2 -1 -1 --------- Run | Yrd Mat Min Mat Min Exi Min Mat Fac Low Low Zio Dee Pro Fac Fac DSF Fac Upp Upp War Pro Res Qua Res Acc Com Machines Accessed 18 | . 1 2 2 1 1 . . . 1 1 . . . . 1 . . . . 1 . . 1 . 6 . Terminals 4 | . . . . . . . . . . . . . . . 1 . . . . . . . . . 3 . Fabricators . | . . . . . . . . . . . . . . . . . . . . . . . . . . . Repair Stations 1 | . 1 . . . . . . . . . . . . . . . . . . . . . . . . . Recycling Units . | . . . . . . . . . . . . . . . . . . . . . . . . . . . Scanalyzers 4 | . . . 2 . . . . . . . . . . . . . . . . . . . 1 . 1 . Garrison Access 2 | . . . . . . . . . . . . . . . . . . . . . . . . . 2 . Total Hacks 34 | . 7 2 4 1 1 . . . 1 1 . . . . 1 . . . . 1 . . 2 . 13 . Successful 21 | . 6 2 2 1 1 . . . 1 1 . . . . 1 . . . . 1 . . 1 . 4 . Failed 13 | . 1 . 2 . . . . . . . . . . . . . . . . . . . 1 . 9 . Catastrophic 2 | . . . . . . . . . . . . . . . . . . . . . . . . . 2 . Database Lockouts . | . . . . . . . . . . . . . . . . . . . . . . . . . . . Manual 8 | . . . . . 1 . . . . . 5 . . . . . . . . 2 . . . . . . Terminals 8 | . . . . . . . . . . . . . . . 1 . . . . . . . . . 7 . Fabricators . | . . . . . . . . . . . . . . . . . . . . . . . . . . . Repair Stations 7 | . 7 . . . . . . . . . . . . . . . . . . . . . . . . . Recycling Units . | . . . . . . . . . . . . . . . . . . . . . . . . . . . Scanalyzers 8 | . . . 4 . . . . . . . . . . . . . . . . . . . 2 . 2 . Garrison Access 4 | . . . . . . . . . . . . . . . . . . . . . . . . . 4 . Terminal Hacks 11 | . . 2 . 1 1 . . . 1 1 . . . . 1 . . . . 1 . . . . 3 . Open Door 9 | . . 2 . 1 . . . . 1 1 . . . . . . . . . 1 . . . . 3 . Open DSF 1 | . . . . . . . . . . . . . . . 1 . . . . . . . . . . . Proto ID Catalog 1 | . . . . . 1 . . . . . . . . . . . . . . . . . . . . . Fabricator Hacks . | . . . . . . . . . . . . . . . . . . . . . . . . . . . Repair Station Hacks 6 | . 6 . . . . . . . . . . . . . . . . . . . . . . . . . Scan Component 3 | . 3 . . . . . . . . . . . . . . . . . . . . . . . . . Repair 3 | . 3 . . . . . . . . . . . . . . . . . . . . . . . . . Recycling Unit Hacks . | . . . . . . . . . . . . . . . . . . . . . . . . . . . Scanalyzer 4 | . . . 2 . . . . . . . . . . . . . . . . . . . 1 . 1 . Retrieve Study 4 | . . . 2 . . . . . . . . . . . . . . . . . . . 1 . 1 . Garrison Access Hacks . | . . . . . . . . . . . . . . . . . . . . . . . . . . . Unauthorized Hacks . | . . . . . . . . . . . . . . . . . . . . . . . . . . . Terminals . | . . . . . . . . . . . . . . . . . . . . . . . . . . . Fabricators . | . . . . . . . . . . . . . . . . . . . . . . . . . . . Repair Stations . | . . . . . . . . . . . . . . . . . . . . . . . . . . . Recycling Units . | . . . . . . . . . . . . . . . . . . . . . . . . . . . Scanalyzers . | . . . . . . . . . . . . . . . . . . . . . . . . . . . Garrison Access . | . . . . . . . . . . . . . . . . . . . . . . . . . . . Data Cores Recovered 2 | . . . . . . . . . . . . . . . . . . . . . . 1 . . . 1 Used . | . . . . . . . . . . . . . . . . . . . . . . . . . . . Hacking Detections 8 | . 1 . 2 . . . . . . . . . . . . . . . . . . . 1 . 4 . Full Trace Events 1 | . . . . . . . . . . . . . . . . . . . . . . . . . 1 . Feedback Events . | . . . . . . . . . . . . . . . . . . . . . . . . . . . Feedback Blocked . | . . . . . . . . . . . . . . . . . . . . . . . . . . . Robot Schematics Acquired . | . . . . . . . . . . . . . . . . . . . . . . . . . . . Robots Built . | . . . . . . . . . . . . . . . . . . . . . . . . . . . Authchips . | . . . . . . . . . . . . . . . . . . . . . . . . . . . Time . | . . . . . . . . . . . . . . . . . . . . . . . . . . . Total Robot Build Rating . | . . . . . . . . . . . . . . . . . . . . . . . . . . . Part Schematics Acquired 3 | . . . . . . . . . . . . . . . . . . . . . . . 3 . . . Parts Built . | . . . . . . . . . . . . . . . . . . . . . . . . . . . Authchips . | . . . . . . . . . . . . . . . . . . . . . . . . . . . Time . | . . . . . . . . . . . . . . . . . . . . . . . . . . . Total Part Build Rating . | . . . . . . . . . . . . . . . . . . . . . . . . . . . Part Studies Acquired 4 | . . . 2 . . . . . . . . . . . . . . . . . . . 1 . 1 . Parts Repaired 3 | . 3 . . . . . . . . . . . . . . . . . . . . . . . . . Time 78 | . 78 . . . . . . . . . . . . . . . . . . . . . . . . . Parts Recycled . | . . . . . . . . . . . . . . . . . . . . . . . . . . . Recycled Matter . | . . . . . . . . . . . . . . . . . . . . . . . . . . . Retrieved Matter . | . . . . . . . . . . . . . . . . . . . . . . . . . . . Retrieved Components . | . . . . . . . . . . . . . . . . . . . . . . . . . . . Parts Scanalyzed . | . . . . . . . . . . . . . . . . . . . . . . . . . . . Part Schematics Acquired . | . . . . . . . . . . . . . . . . . . . . . . . . . . . Parts Damaged . | . . . . . . . . . . . . . . . . . . . . . . . . . . . Bothacking | -11 -10 -10 -9 -9 -9 -8 -8 -7 -7 -7 -7 -7 -6 -6 -5 -5 -4 -4 -4 -4 -3 -3 -3 -2 -1 -1 ------------ Run | Yrd Mat Min Mat Min Exi Min Mat Fac Low Low Zio Dee Pro Fac Fac DSF Fac Upp Upp War Pro Res Qua Res Acc Com Used RIF Installer . | . . . . . . . . . . . . . . . . . . . . . . . . . . . Robots Hacked . | . . . . . . . . . . . . . . . . . . . . . . . . . . . Non-combat . | . . . . . . . . . . . . . . . . . . . . . . . . . . . Combat . | . . . . . . . . . . . . . . . . . . . . . . . . . . . Robot Hacks Applied . | . . . . . . . . . . . . . . . . . . . . . . . . . . . Relay Couplers Released . | . . . . . . . . . . . . . . . . . . . . . . . . . . . Fabnet Peak Effective % . | . . . . . . . . . . . . . . . . . . . . . . . . . . . Robots Rewired 7 | . . . . . . . . . 2 . . . . . . . . . . 5 . . . . . . Allies Hacked . | . . . . . . . . . . . . . . . . . . . . . . . . . . . Hacks Repelled . | . . . . . . . . . . . . . . . . . . . . . . . . . . . Allies | -11 -10 -10 -9 -9 -9 -8 -8 -7 -7 -7 -7 -7 -6 -6 -5 -5 -4 -4 -4 -4 -3 -3 -3 -2 -1 -1 -------- Run | Yrd Mat Min Mat Min Exi Min Mat Fac Low Low Zio Dee Pro Fac Fac DSF Fac Upp Upp War Pro Res Qua Res Acc Com Total Allies 18 | . . . . 4 . . . . 2 . 7 . . . . . . . . 5 . . . . . . Largest Group 8 | . . . . 4 4 . . . 2 2 8 8 2 2 2 2 . . . 5 2 1 . . . . Highest-Rated Group 364 | . . . . 71 71 . . . 52 52 364 364 192 192 192 192 . . . 302 128 64 . . . . Highest-Rated Ally 96 | . . . . 31 31 . . . 32 32 96 96 96 96 96 96 . . . 68 64 64 . . . . Total Orders 3 | . . . . . 1 . . . . . . . . . . . . . . 1 . 1 . . . . STAY 3 | . . . . . 1 . . . . . . . . . . . . . . 1 . 1 . . . . Ally Attacks 121 | . . . . 7 8 . . . . 7 . 57 30 6 . 6 . . . . . . . . . . Total Damage 4385 | . . . . 108 67 . . . . 181 . 2382 1114 344 . 189 . . . . . . . . . . Kills 28 | . . . . 3 1 . . . . 3 . 11 7 3 . . . . . . . . . . . . Allies Corrupted . | . . . . . . . . . . . . . . . . . . . . . . . . . . . Allies Melted . | . . . . . . . . . . . . . . . . . . . . . . . . . . . Intel | -11 -10 -10 -9 -9 -9 -8 -8 -7 -7 -7 -7 -7 -6 -6 -5 -5 -4 -4 -4 -4 -3 -3 -3 -2 -1 -1 ------- Run | Yrd Mat Min Mat Min Exi Min Mat Fac Low Low Zio Dee Pro Fac Fac DSF Fac Upp Upp War Pro Res Qua Res Acc Com Active Infowar (turns) 30 | . . . . . 28 . . . . . . . . . . . . . . 2 . . . . . . Cloaking 30 | . . . . . 28 . . . . . . . . . . . . . . 2 . . . . . . Robot Analysis Total . | . . . . . . . . . . . . . . . . . . . . . . . . . . . Derelict Logs Recovered 15 | . . 2 . 2 . . . . 2 1 2 . 1 . . . . 3 2 . . . . . . . Drone Launches . | . . . . . . . . . . . . . . . . . . . . . . . . . . . Drone Recoveries . | . . . . . . . . . . . . . . . . . . . . . . . . . . . Exploration | -11 -10 -10 -9 -9 -9 -8 -8 -7 -7 -7 -7 -7 -6 -6 -5 -5 -4 -4 -4 -4 -3 -3 -3 -2 -1 -1 ------------- Run | Yrd Mat Min Mat Min Exi Min Mat Fac Low Low Zio Dee Pro Fac Fac DSF Fac Upp Upp War Pro Res Qua Res Acc Com Turns Passed 35585 | 124 2449 1088 1971 3071 4097 318 2029 286 1268 1078 2053 1318 545 988 64 215 160 1406 652 1632 397 771 1545 1384 2570 2106 Spaces Moved 14496 | 67 914 656 602 947 1295 85 931 150 688 473 829 522 210 591 38 102 93 746 368 754 223 309 466 716 761 960 Core 15 | 15 . . . . . . . . . . . . . . . . . . . . . . . . . . Treads 14481 | 52 914 656 602 947 1295 85 931 150 688 473 829 522 210 591 38 102 93 746 368 754 223 309 466 716 761 960 Legs . | . . . . . . . . . . . . . . . . . . . . . . . . . . . Wheels . | . . . . . . . . . . . . . . . . . . . . . . . . . . . Hover . | . . . . . . . . . . . . . . . . . . . . . . . . . . . Flight . | . . . . . . . . . . . . . . . . . . . . . . . . . . . Fastest Speed 50 | 50 160 160 160 320 160 320 145 163 163 165 242 162 162 162 162 160 166 166 166 166 166 166 170 163 151 145 Average Speed 206 | 141 160 160 289 320 280 320 174 163 165 218 242 237 240 162 162 164 166 166 166 166 166 211 240 179 158 185 Slowest Speed 320 | 250 160 160 320 320 320 320 250 163 167 245 245 242 242 162 162 243 166 166 166 166 166 248 252 247 233 231 Overloaded Moves . | . . . . . . . . . . . . . . . . . . . . . . . . . . . Propulsion Burnouts . | . . . . . . . . . . . . . . . . . . . . . . . . . . . Robots Hopped . | . . . . . . . . . . . . . . . . . . . . . . . . . . . Potential Cave-ins 3 | . . . . . . . . . . . . . . . . . . . . 3 . . . . . . Cave-ins Triggered 1 | . . . . . . . . . . . . . . . . . . . . . . . 1 . . . Teleports 1 | . . . . . . . . . . . . . . . . . . . . . . . 1 . . . Exploration Rate (%) 52 | 4 97 97 47 98 85 23 80 5 74 61 83 66 48 11 2 92 3 80 63 82 44 11 67 28 20 42 Regions Visited 26 Branch Regions 15 Pre-discovered Areas 4 | . . 1 . 2 . . . . . . 1 . . . . . . . . . . . . . . . Known Exits Taken 4 | . . . . . . . . . . . . . . . 1 . . . . . 1 1 1 . . . Unknown Exits Taken 21 | 1 1 1 1 1 1 1 1 1 1 1 1 1 1 1 . . 1 1 1 1 . . . 1 1 . Scrap Searched 27 | . . 1 . 1 . . . . 7 3 4 . 2 . . . . 1 4 . 4 . . . . . Spaces Dug 60 | . . . . . . . . . . . . . . 2 . . 1 7 . 29 . 8 8 1 3 1 Terrain Destroyed 310 | . . . . . 32 . . . 1 44 . . 34 2 . . 1 10 4 35 . 20 31 6 60 30 Melee . | . . . . . . . . . . . . . . . . . . . . . . . . . . . Projectile 142 | . . . . . . . . . 1 2 . . 1 2 . . 1 10 4 29 . 20 13 4 39 16 AOE 127 | . . . . . 32 . . . . 42 . . 33 . . . . . . 6 . . 14 . . . Terrain Rammed . | . . . . . . . . . . . . . . . . . . . . . . . . . . . Walls Destroyed . | . . . . . . . . . . . . . . . . . . . . . . . . . . . Machines Disabled . | . . . . . . . . . . . . . . . . . . . . . . . . . . . Actions | -11 -10 -10 -9 -9 -9 -8 -8 -7 -7 -7 -7 -7 -6 -6 -5 -5 -4 -4 -4 -4 -3 -3 -3 -2 -1 -1 --------- Run | Yrd Mat Min Mat Min Exi Min Mat Fac Low Low Zio Dee Pro Fac Fac DSF Fac Upp Upp War Pro Res Qua Res Acc Com Total 18688 | 81 1788 677 712 971 1665 103 1141 170 762 499 868 581 235 614 40 137 96 889 398 1095 236 383 727 784 1920 1116 Wait 2629 | . 769 . 25 14 211 . 57 . 12 5 35 . . . . 16 . 119 6 189 1 15 120 7 986 42 Move 14470 | 66 913 655 601 946 1294 84 930 149 687 472 828 521 209 590 38 101 92 745 367 753 222 308 465 715 760 959 Hop . | . . . . . . . . . . . . . . . . . . . . . . . . . . . Pick Up 177 | 3 16 3 17 1 40 1 8 2 1 2 2 9 . 4 . 1 . 1 4 8 . 5 12 6 24 7 Fast Attach 54 | 6 5 . 2 . 3 . 4 . . . . . . . . . . 1 2 7 . 1 7 6 2 8 Attach 61 | . . . 3 . 6 . 6 2 1 . . 1 1 2 2 2 1 1 . 1 . 1 6 3 13 9 Detach 5 | . . . . . 1 . 1 . . . . . . . . . . . . . . . 2 . . 1 Swap 231 | . . . 3 1 11 1 21 2 6 7 3 23 7 7 . 4 1 1 2 19 1 17 29 18 36 11 Drop 203 | . 6 3 9 1 39 2 20 . 1 1 . 9 4 3 . . . . 6 18 1 3 23 16 24 14 Fire 722 | 6 64 7 46 5 60 14 91 13 35 12 . 18 14 6 . 13 2 19 11 37 11 32 62 13 74 57 Melee . | . . . . . . . . . . . . . . . . . . . . . . . . . . . Ram . | . . . . . . . . . . . . . . . . . . . . . . . . . . . Kick . | . . . . . . . . . . . . . . . . . . . . . . . . . . . Crush 54 | . 15 9 6 3 . 1 3 2 . . . . . 2 . . . 2 . . . 1 1 . 1 8 Escape Stasis . | . . . . . . . . . . . . . . . . . . . . . . . . . . . Rewire 82 | . . . . . . . . . 19 . . . . . . . . . . 63 . . . . . . Trap . | . . . . . . . . . . . . . . . . . . . . . . . . . . . Miscellaneous . | . . . . . . . . . . . . . . . . . . . . . . . . . . . Route ------- -11/Scrapyard -10/Materials (discovered 6 exits: *Mat x3 / *Min x2 / [*Sub]) -10/Mines (discovered 2 exits: *Mat x2) -9/Materials (discovered 2 exits: [*Mat] / *Min) -9/Mines (discovered 4 exits: [*Mat x2] / *Exi / *Zio) -9/Exiles (discovered 2 exits: [*Min x2]) -8/Mines -8/Materials (discovered 3 exits: [*Fac x2] / [*Sto]) -7/Factory (discovered 2 exits: [*Fac] / *Low) -7/Lower Caves -7/Lower Caves (discovered 2 exits: [*Fac] / *Zio) -7/Zion (discovered 2 exits: [*Dee] / [*Pro]) -7/Deep Caves -6/Proximity Caves -6/Factory -5/Factory -5/DSF -4/Factory -4/Upper Caves -4/Upper Caves -4/Warlord -3/Proximity Caves -3/Research (discovered 4 exits: Res x2 / *Qua x2) -3/Quarantine -2/Research -1/Access -1/Command To Epsilon Eridani History --------- Turn | Location | Event 10 | -11/Scrapyard | Discovered new exit (range 16) 125 | -11/Scrapyard | Entered Materials 311 | -10/Materials | Build established: Mutant 316 | -10/Materials | Discovered new exit (range 16) 503 | -10/Materials | Discovered new exit (range 16) 725 | -10/Materials | Discovered new exit (range 10) 866 | -10/Materials | Discovered new exit (range 11) 1403 | -10/Materials | Discovered new exit (range 9) 2217 | -10/Materials | Repaired Lgt. Treads 2244 | -10/Materials | Repaired Assault Rifle 2272 | -10/Materials | Repaired Assault Rifle 2534 | -10/Materials | Discovered new exit (range 16) 2574 | -10/Materials | Entered Mines 2586 | -10/Mines | Met a Derelict bent on vengeance 2590 | -10/Mines | Discovered new exit (range 12) 2691 | -10/Mines | Learned location of Zion (-7) 2696 | -10/Mines | Learned Materials trap positions 2729 | -10/Mines | Met a Derelict shopkeep closing up shop 3127 | -10/Mines | Discovered new exit (range 7) 3238 | -10/Mines | Found the Drone Emporium 3248 | -10/Mines | Found Prototype Device 3662 | -10/Mines | Entered Materials 3662 | -9/Materials | Evolved 2 slots: Weapon x2 3663 | -9/Materials | Loaded intel: 24 trap records 3947 | -9/Materials | Build established: Gunner 3993 | -9/Materials | Discovered new exit (range 12) 4795 | -9/Materials | Discovered new exit (range 12) 5413 | -9/Materials | Build established: Tank 5633 | -9/Materials | Entered Mines 5654 | -9/Mines | Met a Derelict who couldn't figure out how to use a Trap Extractor 6100 | -9/Mines | A Derelict revealed a hidden shortcut to a safe place 6246 | -9/Mines | Discovered new exit (range 8) 6972 | -9/Mines | Discovered new exit (range 12) 7085 | -9/Mines | Met a Derelict testing a Signal Generator 7091 | -9/Mines | Found a hidden stash of uninstalled traps 7235 | -9/Mines | Deemed a non-threat by the Exiles lab entrance 7238 | -9/Mines | Discovered new exit (range 5) 7324 | -9/Mines | Destroyed YI-UF0 7750 | -9/Mines | Assisted by bots powering up and referring to "LRC-V3" 8704 | -9/Mines | Entered Exiles 8704 | -9/Exiles | Accompanied by 4 allies 8756 | -9/Exiles | Discovered new exit (range 15) 8791 | -9/Exiles | Met 8R-AWN 8836 | -9/Exiles | Met EX-HEX 8960 | -9/Exiles | Met EX-DEC 9329 | -9/Exiles | Met EX-BIN 10057 | -9/Exiles | Aligned with FarCom system 10060 | -9/Exiles | Given EX-Vault access code 10115 | -9/Exiles | Opened EX-Vault 10136 | -9/Exiles | Found Cloak of Protection 10205 | -9/Exiles | Warned to stay clear of 0b10 Research branches 10809 | -9/Exiles | Attacked by the Exiles 10881 | -9/Exiles | Lost 4 allies 10952 | -9/Exiles | Destroyed 8R-AWN 10981 | -9/Exiles | Lost 3 parts (1p1u1w) 11001 | -9/Exiles | Build established: Gunner 11170 | -9/Exiles | Found Prototype Processor 11174 | -9/Exiles | Found Prototype Ballistic Gun 11178 | -9/Exiles | Found Prototype Ballistic Gun 11346 | -9/Exiles | Lost 3 parts (2n1w) 11767 | -9/Exiles | Destroyed EX-HEX 12143 | -9/Exiles | Destroyed EX-BIN 12242 | -9/Exiles | Destroyed EX-DEC 12290 | -9/Exiles | Found Prototype Processor 12766 | -9/Exiles | Discovered new exit (range 14) 12801 | -9/Exiles | Entered Mines 12837 | -8/Mines | Discovered new exit (range 10) 12946 | -8/Mines | Core integrity fell below 50% 13119 | -8/Mines | Entered Materials 13119 | -8/Materials | Evolved 2 slots: Propulsion x1, Utility x1 13479 | -8/Materials | Discovered new exit (range 14) 13763 | -8/Materials | Build established: Scavenger-Gunner 14209 | -8/Materials | Discovered new exit (range 9) 14645 | -8/Materials | Discovered new exit (range 10) 14839 | -8/Materials | Found Powered Armor 14842 | -8/Materials | Found Powered Armor 15148 | -8/Materials | Entered Factory 15148 | -7/Factory | Evolved 2 slots: Propulsion x1, Utility x1 15240 | -7/Factory | Discovered new exit (range 7) 15358 | -7/Factory | Discovered new exit (range 7) 15434 | -7/Factory | Entered Lower Caves 15444 | -7/Lower Caves | Build established: Scavenger-Tank 15817 | -7/Lower Caves | Spotted B-75 Beast 15911 | -7/Lower Caves | Destroyed B-75 Beast 16329 | -7/Lower Caves | Attracted the attention of an 0b10 outpost 16374 | -7/Lower Caves | Attracted the attention of an 0b10 checkpoint 16578 | -7/Lower Caves | Learned Factory terminal intel 16637 | -7/Lower Caves | Learned Factory trap positions 16650 | -7/Lower Caves | Discovered new exit (range 4) 16702 | -7/Lower Caves | Entered another Lower Caves area 16702 | -7/Lower Caves | Accompanied by 2 allies 16706 | -7/Lower Caves | Discovered new exit (range 5) 16929 | -7/Lower Caves | Learned Factory emergency access door positions 17327 | -7/Lower Caves | Encountered a Warlord checkpoint 17702 | -7/Lower Caves | Discovered new exit (range 5) 17780 | -7/Lower Caves | Entered Zion 17780 | -7/Zion | Accompanied by 1 ally 17883 | -7/Zion | Learned Factory emergency access door positions 17942 | -7/Zion | Discovered new exit (range 13) 17981 | -7/Zion | Gained Derelict followers 18359 | -7/Zion | Learned 8 Factory zone layouts 18834 | -7/Zion | Given A8's code to call for help 18950 | -7/Zion | Learned location of Warlord (-4) 19081 | -7/Zion | Acquired unknown access codes intercepted by a Zionite 19743 | -7/Zion | Opened final containment barrier to the Deep Caves 19753 | -7/Zion | Enhanced Grunt warped into view, answering call for help 19754 | -7/Zion | Enhanced Grunt warped into view, answering call for help 19789 | -7/Zion | Discovered new exit (range 3) 19789 | -7/Zion | Saw the warning signs outside the Deep Caves entrance 19833 | -7/Zion | Entered Deep Caves 19833 | -7/Deep Caves | Accompanied by 8 allies 20031 | -7/Deep Caves | Attacked by Z-Imprinter 20043 | -7/Deep Caves | Allies destroyed Z-Imprinter 20129 | -7/Deep Caves | Found Prototype Device 20129 | -7/Deep Caves | Identified Zio. Metafield Generator 20164 | -7/Deep Caves | Found Prototype Protection 20164 | -7/Deep Caves | Identified Zio. Weapon Casing 20311 | -7/Deep Caves | Z-Facility disabled 20448 | -7/Deep Caves | Lost 3 allies 21134 | -7/Deep Caves | Discovered new exit (range 6) 21151 | -7/Deep Caves | Entered Proximity Caves 21151 | -6/Proximity Caves | Accompanied by 3 allies 21456 | -6/Proximity Caves | Learned Factory trap positions 21582 | -6/Proximity Caves | Discovered new exit (range 15) 21696 | -6/Proximity Caves | Entered Factory 21696 | -6/Factory | Accompanied by 2 allies 21696 | -6/Factory | Evolved 2 slots: Utility x1, Weapon x1 21697 | -6/Factory | Identified Exp. Targeting Computer 21698 | -6/Factory | Loaded intel: 109 trap records 21700 | -6/Factory | Loaded intel: 26 terminal locations 21753 | -6/Factory | Discovered new exit (range 5) 21996 | -6/Factory | Build established: Scavenger-Gunner 22104 | -6/Factory | Found Powered Armor 22553 | -6/Factory | Unchained authorized (CL-0N3) 22684 | -6/Factory | Entered another Factory area 22684 | -5/Factory | Accompanied by 2 allies 22684 | -5/Factory | Evolved 2 slots: Utility x1, Weapon x1 22684 | -5/Factory | Identified Exp. Core Analyzer 22685 | -5/Factory | Loaded intel: 76 trap records 22748 | -5/Factory | Identified exit to DSF 22748 | -5/Factory | Entered DSF 22748 | -5/DSF | Accompanied by 2 allies 22802 | -5/DSF | Additional patrols routed to DSF 22901 | -5/DSF | Discovered new exit (range 14) 22963 | -5/DSF | Entered Factory 22963 | -4/Factory | Evolved 2 slots: Power x1, Propulsion x1 22984 | -4/Factory | Build established: Scavenger-Executioner 23061 | -4/Factory | Discovered new exit (range 6) 23123 | -4/Factory | Entered Upper Caves 23183 | -4/Upper Caves | Encountered a Warlord checkpoint 23303 | -4/Upper Caves | Spotted B-86 Titan 23648 | -4/Upper Caves | Learned Research terminal intel 23822 | -4/Upper Caves | Learned Research emergency access door positions 23946 | -4/Upper Caves | Learned location of 1 exit from Proximity Caves 24140 | -4/Upper Caves | Discovered new exit (range 10) 24529 | -4/Upper Caves | Entered another Upper Caves area 24779 | -4/Upper Caves | Learned 4 Research zone layouts 24928 | -4/Upper Caves | Learned location of 2 exits from Research 24930 | -4/Upper Caves | Ambushed by wild Derelicts 25105 | -4/Upper Caves | Discovered new exit (range 13) 25181 | -4/Upper Caves | Entered Warlord 25238 | -4/Warlord | System corruption cleaned by Quarantine Array 25351 | -4/Warlord | Found Prototype Energy Gun 25351 | -4/Warlord | Identified Plasma Storm 25918 | -4/Warlord | Visited the Vortex Lab 25930 | -4/Warlord | Warlord's base attacked by MAIN.C 25931 | -4/Warlord | Found Prototype Energy Gun 26038 | -4/Warlord | Identified Vortex Shotgun 26052 | -4/Warlord | Identified 8R-AWN's Boregun (x2) 26101 | -4/Warlord | Found Prototype Device 26101 | -4/Warlord | Identified Exp. Focal Shield 26107 | -4/Warlord | Murdered 3 allies 26110 | -4/Warlord | Found Prototype Device 26110 | -4/Warlord | Identified Exp. Cloaking Device 26121 | -4/Warlord | Found Prototype Reactor 26134 | -4/Warlord | Found Prototype Processor 26202 | -4/Warlord | Met Warlord 26280 | -4/Warlord | Warlord forces counterattacked 26605 | -4/Warlord | Warlord base infiltrated, sounded retreat 26732 | -4/Warlord | Spotted Executioner 26755 | -4/Warlord | Spotted B-86 Titan 26771 | -4/Warlord | Lost 11 allies 26773 | -4/Warlord | Discovered new exit (range 15) 26813 | -4/Warlord | Entered Proximity Caves 26813 | -3/Proximity Caves | Accompanied by 2 allies 26814 | -3/Proximity Caves | Identified exit to Research 26815 | -3/Proximity Caves | Attracted the attention of an 0b10 checkpoint 26917 | -3/Proximity Caves | P-80 Master assimilated allied Archangel 7a 27210 | -3/Proximity Caves | Entered Research 27210 | -3/Research | Accompanied by 1 ally 27210 | -3/Research | Evolved 2 slots: Power x1, Propulsion x1 27211 | -3/Research | Identified exit to Research 27212 | -3/Research | Identified exit to Quarantine 27214 | -3/Research | Loaded intel: 20 terminal locations 27817 | -3/Research | Discovered exit to Quarantine (range 5) 27865 | -3/Research | Found Prototype Processor 27865 | -3/Research | Identified Exp. Terrain Scan Processor 27981 | -3/Research | Entered Quarantine 28015 | -3/Quarantine | Found Alien Artifact 28403 | -3/Quarantine | Identified Vortex Chain Reactor 28441 | -3/Quarantine | Found Alien Artifact 28445 | -3/Quarantine | Found Alien Artifact 28589 | -3/Quarantine | Destroyed 7 combat bots 28605 | -3/Quarantine | Scanned by Researcher 28974 | -3/Quarantine | Spotted Alpha 7 29011 | -3/Quarantine | Destroyed Alpha 7 29027 | -3/Quarantine | Found Prototype Ballistic Gun 29056 | -3/Quarantine | Identified Exp. Target Analyzer 29111 | -3/Quarantine | Identified Multirail 29278 | -3/Quarantine | Identified Transdimensional Reconstructor (x2) 29278 | -3/Quarantine | Warped through subspace 29324 | -3/Quarantine | Crushed by falling debris 29518 | -3/Quarantine | Discovered exit to Research (range 4) 29526 | -3/Quarantine | Entered Research 29526 | -2/Research | Warlord forces began assault on 0b10 29526 | -2/Research | Evolved 2 slots: Weapon x2 29636 | -2/Research | Research machine network offline 29945 | -2/Research | Borebot progress halted 30042 | -2/Research | Borebot progress halted 30092 | -2/Research | Met up with Warlord 30116 | -2/Research | System corruption reached 10% 30131 | -2/Research | Met DD-05H 30370 | -2/Research | Borebot progress halted 30396 | -2/Research | Warlord destroyed during the assault 30589 | -2/Research | Spotted Striker 30812 | -2/Research | Discovered new exit (range 15) 30820 | -2/Research | Found Warlord Statue 30828 | -2/Research | Spotted Striker 30892 | -2/Research | Lost 8 allies 30910 | -2/Research | Entered Access 30910 | -1/Access | Evolved 2 slots: Utility x1, Weapon x1 31069 | -1/Access | Lost 6 allies 32344 | -1/Access | Discovered new exit (range 7) 33160 | -1/Access | First assault squad dispatched 33212 | -1/Access | System corruption reached 10% 33480 | -1/Access | Entered Command 34730 | -1/Command | First assault squad dispatched 35092 | -1/Command | Destroyed 7 combat bots 35190 | -1/Command | Spotted B-99 Colossus 35552 | -1/Command | Spotted Alpha 7 35552 | -1/Command | Spotted Alpha 7 35552 | -1/Command | Spotted Striker 35552 | -1/Command | Spotted Striker 35552 | -1/Command | Spotted Executioner 35552 | -1/Command | Spotted Executioner 35552 | -1/Command | Spotted Executioner 35552 | -1/Command | Spotted Executioner 35553 | -1/Command | Spotted B-99 Colossus 35556 | -1/Command | Spotted B-99 Colossus 35568 | -1/Command | Discovered new exit (range 10) 35573 | -1/Command | Core integrity fell below 50% 35586 | *** | Escaped! Last Messages --------------- 35579_ Penetrated by Slug. 35579_ Slug penetrates B-99 Colossus. 35580_ Slug penetrates Wall. 35580_ Slug penetrates Striker. 35580_ Slug penetrates Wall. 35581_ Penetrated by Slug. 35581_ Slug penetrates Wall. 35583_ Penetrated by Slug. 35583_ Slug penetrates Wall. 35583_ Penetrated by Slug. 35583_ Biometal Heavy Treads destroyed. 35583_ Slug penetrates Wall. 35583_ Penetrated by Slug. 35583_ Slug penetrates Wall. 35583_ Penetrated by Slug. 35583_ Slug penetrates Wall. 35584_ Wall collapses. 35584_ Penetrated by Slug. 35584_ Slug penetrates Wall. 35584_ Penetrated by Slug. Map ----- +----------------------------------------------------+ | | | | | | | | | | | | | | | | | ?????????????????????????????????????????????????? | | ?????????????????????????????????????????????????? | | ?????????????????????????????????????????????????? | | ?????????????????????????????????????????????????? | | ???????????????????????????????????????#####? ???? | | #######???????????????????????????????? ???? | | +???????????????????????????????? *????? | | = #???????????????????????????????# ???? | | +???????????????????????????????# ????? | | #???????????????????????????????# ???? | | #???????????????????????????????# ??? | | #???????????##############??????# """" | | #??????????## #?###??# """" | | #?##########;BB #?# ?# """" | | #?#"# # # # ;BB ^^ #?# ?# """" | | ### ^E #?# # | | + ^ ^^ #?# = # | | % " ^%^^%% [%%^ "@ #?# + | | "%^ %^ ^!!E7*K "" #?# # "" "" | | "% %!%! %E7!E][ #?# # ""R""? | | ######"# ^% ^^%BB^% % #?# ?# """"? | | #? ###" # ; # #BB %^ ;## ?# ######? | | # #?##########! ;####??# #?????? | | # #??????????# ##?????# #?????? | | + #??????????##############??????# ####?????? | | # #??????????????????????????????# #????????? | | # #??????????????##############??# #????????? | | #? #??????????????# [ #??# #????????? | | ##? #??????????????# #??# #????????? | | ???? !#??????????????# #??# #????????? | | ???? #??????????????# ####+###??????? | | ????? #??????????????# ! * # #??????? | | ??#+####???????????????###########+# ""T #??????? | | ### ##?????????####????# + """" #??????? | | #?????????# ??# ######### # """" #??????? | | #?????????# # # = # # """ #??????? | | #?????????# + # ===!# # ######?? | | "" #??????????######## # = # ######### ### | | "" #???????????? #??# + ! # " | | #????????????# #??# # = ########### ### | | #????????????#!#??# # #?????????## ##?? | | ! #????????????#[#??# # #??????????# #??? | +----------------------------------------------------+ Best States ------------- Heat Dissipation 116 Energy Generation 75 Energy Capacity 950 Matter Stores 300 Matter Capacity 300 Sight Range 16 Terrain Scan Density 10 Cloak Strength 5 EM Shielding 4 Armor Coverage 400 Evasion (%) 55 Targeting Accuracy 20 Target Analysis 10 Core Analysis 8 Recoil Reduction 6 Salvage Targeting 4 Item Schematics ----------------- Adv. KE Penetrator | -3/Quarantine | Archive Enh. Multireflex Exoskeleton | -3/Quarantine | Archive Adv. Gravity Neutralizer | -3/Quarantine | Archive Robot Schematics ------------------ None Fabricated ------------ Nothing Repaired ---------- Lgt. Treads | 10% | -10/Materials Assault Rifle | 2% | -10/Materials Assault Rifle | 27% | -10/Materials Studied --------- Hvy. Assault Rifle | -9/Materials | Hacked Assault Rifle | -9/Materials | Hacked Coil Gun | -3/Quarantine | Hacked Railgun | -1/Access | Hacked Alien Tech Used ----------------- Transdimensional Reconstructor Achievements -------------- Doshington Tailor-made Challenges ------------ None Game ------ Seed SupersonicArcShooter Manual? 0 Play Time 02:38:21 Cumulative 256.2 hours Start 2025.11.27 @ 23:12:31 End 2025.11.28 @ 15:56:44 Sessions 10 Manual Loads 0 Difficulty Rogue Special Mode None Game No. 142 Rogue 142 Adventurer 0 Explorer 0 Win Type 0 Total 31 Types 13/1/11/1/0/1/2/1/0/1 Lore% 82 Gallery% 73 Achievement% 59 Wizard Run 0 Options --------- Layout 1 ASCII 0 Keyboard 0 Movement Arrows Keybinds 0 Fullscreen 2 Font 24/Tamsyn Map View 50x35 Zoom Use 0% Tactical HUD 1 Map Filters NONE Filters NONE Steam 1 RUN: ac666792-831d-4322-86fd-5dcf4409169f